fUSD/lending_fUSD_20241227
["ID","MTS","AMOUNT","RATE_DAILY","PERIOD"]
[346793433,1735291840342,-500.0,0.00010999,2]
[346793434,1735291840360,-718.21,0.00010999,2]
[346793435,1735291840370,-500.0,0.00010999,2]
[346793436,1735291840379,-500.0,0.00010999,2]
[346793437,1735291840388,-729.3,0.00010999,2]
[346793438,1735291840397,-898.86,0.00010999,2]
[346793439,1735291840407,-500.0,0.00010999,2]
[346793440,1735291840416,-609.4,0.00010999,2]
[346793441,1735291840429,-500.0,0.00010999,2]
[346793442,1735291840438,-500.0,0.00010999,2]
[346793443,1735291840448,-646.24,0.00010999,2]
[346793444,1735291840457,-500.0,0.00010999,2]
[346793445,1735291840467,-500.0,0.00010999,2]
[346793446,1735291840476,-739.94,0.00010999,2]
[346793447,1735291840485,-500.0,0.00010999,2]
[346793448,1735291840495,-435.87124819,0.00010999,2]
[346793449,1735291840504,-246.53537077,0.00010999,2]
[346793450,1735291840514,-1005.03,0.00010999,2]
[346793451,1735291840523,-500.0,0.00010999,2]
[346793452,1735291840533,-523.72,0.00010999,2]
[346793453,1735291840542,-500.0,0.00010999,2]
[346793454,1735291840552,-500.0,0.00010999,2]
[346793455,1735291840561,-500.0,0.00010999,2]
[346793456,1735291840570,-500.0,0.00010999,2]
[346793457,1735291840580,-500.0,0.00010999,2]
[346793458,1735291840589,-500.0,0.00010999,2]
[346793459,1735291840599,-500.0,0.00010999,2]
[346793460,1735291840608,-583.53,0.00010999,2]
[346793461,1735291840618,-500.0,0.00010999,2]
[346793462,1735291840627,-500.0,0.00010999,2]
[346793463,1735291840637,-500.0,0.00010999,2]
[346793464,1735291840646,-500.0,0.00010999,2]
[346793465,1735291840656,-517.26780386,0.00010999,2]
[346793466,1735291840665,-500.0,0.00010999,2]
[346793467,1735291840675,-544.67,0.00010999,2]
[346793468,1735291840686,-500.0,0.00010999,2]
[346793469,1735291840696,-500.0,0.00010999,2]
[346793470,1735291840705,-500.0,0.00010999,2]
[346793471,1735291840715,-301.23450868,0.00010999,2]
[346793472,1735291840735,-198.76549132,0.00010999,2]
[346793473,1735291840745,-690.73,0.00010999,2]
[346793474,1735291840754,-500.0,0.00010999,2]
[346793475,1735291840764,-500.0,0.00010999,2]
[346793476,1735291840773,-500.0,0.00010999,2]
[346793477,1735291840782,-500.0,0.00010999,2]
[346793478,1735291840792,-500.0,0.00010999,2]
[346793479,1735291840801,-503.75106295,0.00010999,2]
[346793480,1735291840812,-500.0,0.00010999,2]
[346793481,1735291840822,-500.0,0.00010999,2]
[346793482,1735291840831,-500.0,0.00010999,2]
[346793483,1735291840840,-500.0,0.00010999,2]
[346793484,1735291840849,-500.0,0.00010999,2]
[346793485,1735291840858,-500.0,0.00010999,2]
[346793486,1735291840868,-500.0,0.00010999,2]
[346793487,1735291840877,-502.83,0.00010999,2]
[346793488,1735291840886,-500.0,0.00010999,2]
[346793489,1735291840896,-500.0,0.00010999,2]
[346793490,1735291840906,-500.0,0.00010999,2]
[346793491,1735291840915,-500.0,0.00010999,2]
[346793492,1735291840925,-940.16,0.00010999,2]
[346793493,1735291840936,-501.41,0.00010999,2]
[346793494,1735291840945,-500.0,0.00010999,2]
[346793495,1735291840954,-500.0,0.00010999,2]
[346793496,1735291840964,-415.09211079,0.00010999,2]
[346793497,1735291840973,-500.0,0.00010999,2]
[346793498,1735291840982,-500.0,0.00010999,2]
[346793499,1735291840992,-500.0,0.00010999,2]
[346793500,1735291841001,-500.0,0.00010999,2]
[346793501,1735291841010,-500.0,0.00010999,2]
[346793502,1735291841020,-500.0,0.00010999,2]
[346793503,1735291841029,-500.0,0.00010999,2]
[346793504,1735291841039,-500.0,0.00010999,2]
[346793505,1735291841049,-500.0,0.00010999,2]
[346793506,1735291841058,-500.0,0.00010999,2]
[346793507,1735291841067,-500.0,0.00010999,2]
[346793508,1735291841078,-500.0,0.00010999,2]
[346793509,1735291841087,-500.0,0.00010999,2]
[346793510,1735291841096,-500.0,0.00010999,2]
[346793511,1735291841106,-500.0,0.00010999,2]
[346793512,1735291841115,-500.0,0.00010999,2]
[346793513,1735291841124,-560.78,0.00010999,2]
[346793514,1735291841133,-500.0,0.00010999,2]
[346793515,1735291841142,-860.4,0.00010999,2]
[346793516,1735291841152,-500.0,0.00010999,2]
[346793517,1735291841161,-504.21690968,0.00010999,2]
[346793518,1735291841171,-500.0,0.00010999,2]
[346793519,1735291841182,-500.0,0.00010999,2]
[346793520,1735291841192,-500.0,0.00010999,2]
[346793521,1735291841201,-500.0,0.00010999,2]
[346793522,1735291841211,-500.0,0.00010999,2]
[346793523,1735291841221,-500.0,0.00010999,2]
[346793524,1735291841230,-500.0,0.00010999,2]
[346793525,1735291841239,-500.0,0.00010999,2]
[346793526,1735291841248,-500.0,0.00010999,2]
[346793527,1735291841257,-500.0,0.00010999,2]
[346793528,1735291841266,-500.0,0.00010999,2]
[346793529,1735291841276,-500.0,0.00010999,2]
[346793530,1735291841285,-500.0,0.00010999,2]
[346793531,1735291841295,-500.0,0.00010999,2]
[346793532,1735291841304,-500.0,0.00010999,2]
[346793533,1735291841313,-500.0,0.00010999,2]
[346793534,1735291841324,-547.65,0.00010999,2]
[346793535,1735291841333,-500.0,0.00010999,2]
[346793536,1735291841343,-502.14124658,0.00010999,2]
[346793537,1735291841353,-500.0,0.00010999,2]
[346793538,1735291841362,-500.0,0.00010999,2]
[346793539,1735291841372,-500.0,0.00010999,2]
[346793540,1735291841651,-885.31,0.00010999,2]
[346793541,1735291841661,-500.0,0.00010999,2]
[346793542,1735291841671,-500.0,0.00010999,2]
[346793543,1735291841682,-500.0,0.00010999,2]
[346793544,1735291841692,-500.0,0.00010999,2]
[346793545,1735291841702,-511.06,0.00010999,2]
[346793546,1735291841712,-500.0,0.00010999,2]
[346793547,1735291841722,-648.31,0.00010999,2]
[346793548,1735291841733,-500.0,0.00010999,2]
[346793549,1735291841743,-500.0,0.00010999,2]
[346793550,1735291841752,-711.39,0.00010999,2]
[346793551,1735291841762,-500.0,0.00010999,2]
[346793552,1735291841771,-524.51,0.00010999,2]
[346793553,1735291841780,-500.0,0.00010999,2]
[346793554,1735291841791,-500.0,0.00010999,2]
[346793555,1735291841802,-478.82431211,0.00010999,2]
[346793556,1735291841811,-500.0,0.00010999,2]
[346793557,1735291841820,-500.0,0.00010999,2]
[346793558,1735291841830,-500.0,0.00010999,2]
[346793559,1735291841841,-500.0,0.00010999,2]
[346793560,1735291841851,-500.0,0.00010999,2]
[346793561,1735291841860,-500.0,0.00010999,2]
[346793562,1735291841871,-500.0,0.00010999,2]
[346793563,1735291841881,-500.0,0.00010999,2]
[346793564,1735291841890,-500.0,0.00010999,2]
[346793565,1735291841900,-3762.39,0.00010999,2]
[346793566,1735291841909,-500.0,0.00010999,2]
[346793567,1735291841918,-500.0,0.00010999,2]
[346793568,1735291841928,-500.0,0.00010999,2]
[346793569,1735291841937,-500.0,0.00010999,2]
[346793570,1735291841947,-417.83470213,0.00010999,2]
[346793571,1735291841956,-500.0,0.00010999,2]
[346793572,1735291841965,-500.0,0.00010999,2]
[346793573,1735291841974,-520.63108458,0.00010999,2]
[346793574,1735291841983,-500.0,0.00010999,2]
[346793575,1735291841992,-790.62,0.00010999,2]
[346793576,1735291842002,-500.0,0.00010999,2]
[346793577,1735291842010,-500.0,0.00010999,2]
[346793578,1735291842019,-151.0,0.00010999,2]
[346793579,1735291842029,-500.0,0.00010999,2]
[346793580,1735291842039,-500.0,0.00010999,2]
[346793581,1735291842050,-503.69,0.00010999,2]
[346793582,1735291842059,-500.0,0.00010999,2]
[346793583,1735291842068,-500.0,0.00010999,2]
[346793584,1735291842077,-500.0,0.00010999,2]
[346793585,1735291842086,-500.0,0.00010999,2]
[346793586,1735291842096,-519.69,0.00010999,2]
[346793587,1735291842104,-500.0,0.00010999,2]
[346793588,1735291842114,-500.0,0.00010999,2]
[346793589,1735291842123,-500.0,0.00010999,2]
[346793590,1735291842132,-5969.08,0.00010999,2]
[346793591,1735291842141,-500.0,0.00010999,2]
[346793592,1735291842151,-599.97,0.00010999,2]
[346793593,1735291842160,-514.55024902,0.00010999,2]
[346793594,1735291842169,-500.0,0.00010999,2]
[346793595,1735291842181,-500.0,0.00010999,2]
[346793596,1735291842190,-500.0,0.00010999,2]
[346793597,1735291842201,-500.0,0.00010999,2]
[346793598,1735291842210,-500.0,0.00010999,2]
[346793599,1735291842219,-500.0,0.00010999,2]
[346793600,1735291842228,-500.0,0.00010999,2]
[346793601,1735291842237,-500.0,0.00010999,2]
[346793602,1735291842247,-191.76778263,0.00010999,2]
[346793603,1735291842256,-500.0,0.00010999,2]
[346793604,1735291842265,-500.0,0.00010999,2]
[346793605,1735291842274,-4325.16,0.00010999,2]
[346793606,1735291842283,-594.44,0.00010999,2]
[346793607,1735291842292,-500.0,0.00010999,2]
[346793608,1735291842301,-500.0,0.00010999,2]
[346793609,1735291842311,-584.37,0.00010999,2]
[346793610,1735291842320,-500.0,0.00010999,2]
[346793611,1735291842329,-779.58,0.00010999,2]
[346793612,1735291842338,-500.0,0.00010999,2]
[346793613,1735291842348,-500.0,0.00010999,2]
[346793614,1735291842357,-500.0,0.00010999,2]
[346793615,1735291842366,-500.0,0.00010999,2]
[346793616,1735291842375,-500.0,0.00010999,2]
[346793617,1735291842385,-500.0,0.00010999,2]
[346793618,1735291842394,-500.0,0.00010999,2]
[346793619,1735291842403,-3031.06,0.00010999,2]
[346793620,1735291842412,-500.0,0.00010999,2]
[346793621,1735291842421,-500.0,0.00010999,2]
[346793622,1735291842435,-500.0,0.00010999,2]
[346793623,1735291842445,-500.0,0.00010999,2]
[346793624,1735291842454,-500.0,0.00010999,2]
[346793625,1735291842464,-508.60242631,0.00010999,2]
[346793626,1735291842473,-500.0,0.00010999,2]
[346793627,1735291842483,-500.0,0.00010999,2]
[346793628,1735291842492,-500.0,0.00010999,2]
[346793629,1735291842502,-500.0,0.00010999,2]
[346793630,1735291842511,-500.0,0.00010999,2]
[346793631,1735291842520,-500.0,0.00010999,2]
[346793632,1735291842530,-500.0,0.00010999,2]
[346793633,1735291842539,-500.0,0.00010999,2]
[346793634,1735291842549,-500.0,0.00010999,2]
[346793635,1735291842559,-500.0,0.00010999,2]
[346793636,1735291842568,-500.0,0.00010999,2]
[346793637,1735291842578,-500.0,0.00010999,2]
[346793638,1735291842588,-500.0,0.00010999,2]
[346793639,1735291842597,-500.0,0.00010999,2]
[346793640,1735291842607,-500.0,0.00010999,2]
[346793641,1735291842617,-500.0,0.00010999,2]
[346793642,1735291842628,-882.53,0.00010999,2]
[346793643,1735291842639,-500.0,0.00010999,2]
[346793644,1735291842649,-500.0,0.00010999,2]
[346793645,1735291842660,-500.0,0.00010999,2]
[346793646,1735291842671,-500.0,0.00010999,2]
[346793647,1735291842684,-500.0,0.00010999,2]
[346793648,1735291842694,-723.11,0.00010999,2]
[346793649,1735291842704,-157.912619,0.00010999,2]
[346793650,1735291842713,-154.304861,0.00010999,2]
[346793652,1735291842723,-620.82,0.00010999,2]
[346793654,1735291842733,-2472.739984,0.00010999,2]
[346793656,1735291842743,-21980.55,0.00010999,2]
[346793658,1735291842753,-2464.189431,0.00010999,2]
[346793660,1735291842762,-500.0,0.00010999,2]
[346793662,1735291842772,-500.0,0.00010999,2]
[346793665,1735291842781,-500.0,0.00010999,2]
[346793668,1735291842791,-500.0,0.00010999,2]
[346793670,1735291842802,-500.0,0.00010999,2]
[346793672,1735291842811,-500.0,0.00010999,2]
[346793674,1735291842820,-500.0,0.00010999,2]
[346793676,1735291842830,-500.0,0.00010999,2]
[346793678,1735291842840,-527.22208072,0.00010999,2]
[346793681,1735291842850,-2372.08,0.00010999,2]
[346793684,1735291842860,-500.0,0.00010999,2]
[346793686,1735291842871,-533.6,0.00010999,2]
[346793688,1735291842880,-500.0,0.00010999,2]
[346793691,1735291842889,-2716.12,0.00010999,2]
[346793694,1735291842899,-500.0,0.00010999,2]
[346793697,1735291842908,-500.0,0.00010999,2]
[346793698,1735291842917,-500.0,0.00010999,2]
[346793699,1735291842927,-500.0,0.00010999,2]
[346793700,1735291842940,-500.0,0.00010999,2]
[346793701,1735291842950,-500.0,0.00010999,2]
[346793702,1735291842960,-598.22,0.00010999,2]
[346793704,1735291842970,-500.0,0.00010999,2]
[346793706,1735291842980,-500.0,0.00010999,2]
[346793707,1735291842990,-477.36830296,0.00010999,2]
[346793708,1735291842999,-500.0,0.00010999,2]
[346793709,1735291843008,-509.9038446,0.00010999,2]
[346793710,1735291843017,-2981.82,0.00010999,2]
[346793711,1735291843026,-500.0,0.00010999,2]
[346793712,1735291843036,-500.0,0.00010999,2]
[346793713,1735291843045,-1803.48,0.00010999,2]
[346793714,1735291843055,-500.0,0.00010999,2]
[346793715,1735291843065,-514.17,0.00010999,2]
[346793716,1735291843075,-500.0,0.00010999,2]
[346793717,1735291843086,-513.35611071,0.00010999,2]
[346793718,1735291843096,-500.0,0.00010999,2]
[346793719,1735291843105,-500.0,0.00010999,2]
[346793720,1735291843115,-500.0,0.00010999,2]
[346793721,1735291843124,-500.0,0.00010999,2]
[346793722,1735291843133,-500.0,0.00010999,2]
[346793723,1735291843142,-500.0,0.00010999,2]
[346793724,1735291843151,-500.0,0.00010999,2]
[346793725,1735291843160,-500.0,0.00010999,2]
[346793726,1735291843170,-3797.81,0.00010999,2]
[346793727,1735291843182,-500.0,0.00010999,2]
[346793728,1735291843191,-500.0,0.00010999,2]
[346793729,1735291843200,-2569.54,0.00010999,2]
[346793730,1735291843209,-500.0,0.00010999,2]
[346793731,1735291843218,-1732.06,0.00010999,2]
[346793732,1735291843228,-672.23,0.00010999,2]
[346793733,1735291843237,-500.0,0.00010999,2]
[346793734,1735291843246,-817.24,0.00010999,2]
[346793735,1735291843256,-630.85,0.00010999,2]
[346793736,1735291843266,-365.50656235,0.00010999,2]
[346793737,1735291843276,-500.0,0.00010999,2]
[346793738,1735291843286,-500.0,0.00010999,2]
[346793739,1735291843295,-500.0,0.00010999,2]
[346793740,1735291843304,-3123.69,0.00010999,2]
[346793741,1735291843313,-4266.07,0.00010999,2]
[346793742,1735291843323,-500.0,0.00010999,2]
[346793743,1735291843332,-500.0,0.00010999,2]
[346793744,1735291843341,-512.6,0.00010999,2]
[346793745,1735291843351,-500.0,0.00010999,2]
[346793746,1735291843360,-500.0,0.00010999,2]
[346793747,1735291843369,-500.0,0.00010999,2]
[346793748,1735291843378,-500.0,0.00010999,2]
[346793749,1735291843388,-500.0,0.00010999,2]
[346793750,1735291843397,-794.84,0.00010999,2]
[346793751,1735291843407,-975.35,0.00010999,2]
[346793752,1735291843416,-500.0,0.00010999,2]
[346793753,1735291843426,-500.0,0.00010999,2]
[346793754,1735291843437,-500.0,0.00010999,2]
[346793755,1735291843447,-500.0,0.00010999,2]
[346793756,1735291843456,-500.0,0.00010999,2]
[346793757,1735291843466,-500.0,0.00010999,2]
[346793758,1735291843475,-500.0,0.00010999,2]
[346793759,1735291843484,-514.76,0.00010999,2]
[346793760,1735291843494,-4542.46,0.00010999,2]
[346793761,1735291843504,-500.0,0.00010999,2]
[346793762,1735291843514,-500.0,0.00010999,2]
[346793763,1735291843524,-583.83,0.00010999,2]
[346793764,1735291843533,-500.0,0.00010999,2]
[346793765,1735291843543,-500.0,0.00010999,2]
[346793766,1735291843554,-16484.42,0.00010999,2]
[346793767,1735291843563,-746.26,0.00010999,2]
[346793768,1735291843573,-2462.25,0.00010999,2]
[346793769,1735291843582,-500.0,0.00010999,2]
[346793770,1735291843592,-500.0,0.00010999,2]
[346793771,1735291843601,-500.0,0.00010999,2]
[346793772,1735291843611,-500.0,0.00010999,2]
[346793773,1735291843621,-500.0,0.00010999,2]
[346793774,1735291843631,-500.0,0.00010999,2]
[346793775,1735291843641,-500.0,0.00010999,2]
[346793776,1735291843650,-739.01,0.00010999,2]
[346793778,1735291843660,-500.0,0.00010999,2]
[346793780,1735291843669,-500.0,0.00010999,2]
[346793782,1735291843680,-500.0,0.00010999,2]
[346793784,1735291843689,-500.0,0.00010999,2]
[346793786,1735291843699,-500.0,0.00010999,2]
[346793788,1735291843709,-500.0,0.00010999,2]
[346793790,1735291843719,-746.72,0.00010999,2]
[346793792,1735291843728,-3214.75,0.00010999,2]
[346793794,1735291843738,-500.0,0.00010999,2]
[346793796,1735291843748,-500.0,0.00010999,2]
[346793798,1735291843758,-3269.89,0.00010999,2]
[346793800,1735291843767,-537.48,0.00010999,2]
[346793802,1735291843776,-500.0,0.00010999,2]
[346793804,1735291843786,-500.0,0.00010999,2]
[346793806,1735291843798,-500.0,0.00010999,2]
[346793808,1735291843808,-1387.05,0.00010999,2]
[346793810,1735291843817,-500.0,0.00010999,2]
[346793812,1735291843826,-500.0,0.00010999,2]
[346793814,1735291843836,-500.0,0.00010999,2]
[346793816,1735291843846,-500.0,0.00010999,2]
[346793818,1735291843855,-500.0,0.00010999,2]
[346793820,1735291843864,-162.36369257,0.00010999,2]
[346793822,1735291843876,-318.30248999,0.00010999,2]
[346793824,1735291843885,-500.0,0.00010999,2]
[346793826,1735291843895,-500.0,0.00010999,2]
[346793828,1735291843904,-2425.83,0.00010999,2]
[346793830,1735291843913,-500.0,0.00010999,2]
[346793832,1735291843922,-500.0,0.00010999,2]
[346793834,1735291843932,-500.0,0.00010999,2]
[346793836,1735291843942,-500.0,0.00010999,2]
[346793838,1735291843951,-500.0,0.00010999,2]
[346793840,1735291843960,-500.0,0.00010999,2]
[346793842,1735291843969,-500.0,0.00010999,2]
[346793844,1735291843979,-500.0,0.00010999,2]
[346793846,1735291843989,-7958.37,0.00010999,2]
[346793848,1735291843998,-500.0,0.00010999,2]
[346793850,1735291844008,-500.0,0.00010999,2]
[346793852,1735291844017,-500.0,0.00010999,2]
[346793854,1735291844026,-500.0,0.00010999,2]
[346793856,1735291844037,-883.36,0.00010999,2]
[346793858,1735291844047,-151.0,0.00010999,2]
[346793860,1735291844057,-500.0,0.00010999,2]
[346793862,1735291844066,-500.0,0.00010999,2]
[346793864,1735291844076,-503.5067966,0.00010999,2]
[346793866,1735291844085,-500.0,0.00010999,2]
[346793868,1735291844094,-315.49405327,0.00010999,2]
[346793870,1735291844103,-500.0,0.00010999,2]
[346793872,1735291844113,-500.0,0.00010999,2]
[346793874,1735291844122,-500.0,0.00010999,2]
[346793876,1735291844132,-4226.1,0.00010999,2]
[346793878,1735291844141,-9692.57,0.00010999,2]
[346793880,1735291844150,-500.0,0.00010999,2]
[346793882,1735291844159,-500.0,0.00010999,2]
[346793884,1735291844169,-500.88363576,0.00010999,2]
[346793886,1735291844180,-500.0,0.00010999,2]
[346793888,1735291844189,-500.0,0.00010999,2]
[346793890,1735291844198,-500.0,0.00010999,2]
[346793892,1735291844207,-500.0,0.00010999,2]
[346793894,1735291844217,-4561.71,0.00010999,2]
[346793896,1735291844225,-500.0,0.00010999,2]
[346793898,1735291844235,-500.0,0.00010999,2]
[346793900,1735291844244,-501.17230328,0.00010999,2]
[346793902,1735291844253,-500.0,0.00010999,2]
[346793904,1735291844262,-10865.46,0.00010999,2]
[346793905,1735291844271,-501.35753974,0.00010999,2]
[346793907,1735291844281,-500.0,0.00010999,2]
[346793909,1735291844290,-500.0,0.00010999,2]
[346793911,1735291844300,-501.54528282,0.00010999,2]
[346793913,1735291844308,-608.69,0.00010999,2]
[346793915,1735291844317,-500.0,0.00010999,2]
[346793917,1735291844327,-500.0,0.00010999,2]
[346793919,1735291844336,-500.0,0.00010999,2]
[346793921,1735291844345,-387.98251068,0.00010999,2]
[346793923,1735291844354,-500.0,0.00010999,2]
[346793925,1735291844364,-1358.04,0.00010999,2]
[346793927,1735291844373,-500.0,0.00010999,2]
[346793929,1735291844383,-500.0,0.00010999,2]
[346793931,1735291844392,-500.0,0.00010999,2]
[346793933,1735291844401,-500.0,0.00010999,2]
[346793935,1735291844410,-500.0,0.00010999,2]
[346793937,1735291844419,-500.0,0.00010999,2]
[346793939,1735291844431,-19591.34,0.00010999,2]
[346793941,1735291844441,-500.0,0.00010999,2]
[346793943,1735291844450,-500.0,0.00010999,2]
[346793945,1735291844459,-500.0,0.00010999,2]
[346793947,1735291844468,-159.20563411,0.00010999,2]
[346793949,1735291844478,-500.0,0.00010999,2]
[346793951,1735291844487,-500.0,0.00010999,2]
[346793953,1735291844496,-500.0,0.00010999,2]
[346793955,1735291844505,-500.0,0.00010999,2]
[346793957,1735291844514,-500.0,0.00010999,2]
[346793959,1735291844524,-500.0,0.00010999,2]
[346793961,1735291844534,-500.0,0.00010999,2]
[346793963,1735291844543,-4512.52,0.00010999,2]
[346793965,1735291844553,-500.0,0.00010999,2]
[346793967,1735291844561,-500.0,0.00010999,2]
[346793969,1735291844571,-500.0,0.00010999,2]
[346793971,1735291844581,-500.0,0.00010999,2]
[346793973,1735291844590,-501.4425418,0.00010999,2]
[346793975,1735291844599,-500.0,0.00010999,2]
[346793977,1735291844608,-500.0,0.00010999,2]
[346793979,1735291844617,-500.0,0.00010999,2]
[346793981,1735291844627,-500.0,0.00010999,2]
[346793983,1735291844636,-500.0,0.00010999,2]
[346793985,1735291844645,-11983.44,0.00010999,2]
[346793987,1735291844655,-500.0,0.00010999,2]
[346793989,1735291844664,-500.0,0.00010999,2]
[346793991,1735291844673,-502.5956984,0.00010999,2]
[346793993,1735291844686,-224.26209054,0.00010999,2]
[346793995,1735291844695,-1240.83,0.00010999,2]
[346793997,1735291844704,-500.0,0.00010999,2]
[346793999,1735291844713,-500.0,0.00010999,2]
[346794001,1735291844724,-4282.87,0.00010999,2]
[346794003,1735291844733,-500.0,0.00010999,2]
[346794005,1735291844742,-500.0,0.00010999,2]
[346794007,1735291844751,-500.0,0.00010999,2]
[346794008,1735291844761,-500.0,0.00010999,2]
[346794010,1735291844770,-500.0,0.00010999,2]
[346794012,1735291844779,-500.0,0.00010999,2]
[346794015,1735291844788,-500.0,0.00010999,2]
[346794017,1735291844798,-500.0,0.00010999,2]
[346794018,1735291844810,-500.0,0.00010999,2]
[346794019,1735291844819,-500.0,0.00010999,2]
[346794020,1735291844828,-500.0,0.00010999,2]
[346794021,1735291844837,-500.0,0.00010999,2]
[346794022,1735291844847,-500.0,0.00010999,2]
[346794023,1735291844856,-500.0,0.00010999,2]
[346794024,1735291844866,-500.0,0.00010999,2]
[346794025,1735291844875,-626.8,0.00010999,2]
[346794026,1735291844888,-500.0,0.00010999,2]
[346794027,1735291844897,-1102720.3667484,0.00011,2]
[346794028,1735291844907,-151.9,0.00011,2]
[346794029,1735291844916,-500.0,0.00011,2]
[346794030,1735291844925,-151.0,0.00011,2]
[346794031,1735291844937,-151.0,0.00011,2]
[346794032,1735291844946,-1256.77299,0.0001108,2]
[346794033,1735291844956,-729.78,0.00011091,2]
[346794034,1735291844965,-470.99890916,0.00011092,2]
[346794035,1735291844976,-1000.0,0.00011143,2]
[346794036,1735291844985,-500.0,0.00011173,2]
[346794037,1735291844995,-500.0,0.00011173,2]
[346794038,1735291845006,-500.0,0.00011187,2]
[346794039,1735291845020,-500.0,0.00011188,2]
[346794040,1735291845030,-1514.23,0.00011188,2]
[346794041,1735291845041,-500.0,0.00011188,2]
[346794042,1735291845050,-1200.91,0.00011188,2]
[346794043,1735291845061,-745.24,0.00011188,2]
[346794044,1735291845070,-765.49,0.00011188,2]
[346794045,1735291845079,-500.0,0.00011188,2]
[346794046,1735291845088,-749.37,0.00011188,2]
[346794047,1735291845098,-1126.34,0.00011188,2]
[346794048,1735291845107,-868.57,0.00011188,2]
[346794049,1735291845117,-500.0,0.00011188,2]
[346794050,1735291845131,-640.08,0.00011188,2]
[346794051,1735291845140,-668.36,0.00011188,2]
[346794052,1735291845150,-500.0,0.00011188,2]
[346794053,1735291845159,-500.0,0.00011188,2]
[346794054,1735291845168,-504.29814175,0.00011188,2]
[346794055,1735291845178,-1337.85,0.00011188,2]
[346794056,1735291845188,-630.1,0.00011188,2]
[346794057,1735291845198,-879.3,0.00011188,2]
[346794058,1735291845207,-1002.79,0.00011188,2]
[346794059,1735291845216,-1150.76,0.00011188,2]
[346794060,1735291845226,-587.23,0.00011188,2]
[346794061,1735291845235,-500.0,0.00011188,2]
[346794062,1735291845244,-151.0,0.00011188,2]
[346794063,1735291845254,-500.0,0.00011188,2]
[346794064,1735291845263,-500.0,0.00011188,2]
[346794065,1735291845272,-1043.88,0.00011188,2]
[346794066,1735291845281,-500.0,0.00011188,2]
[346794067,1735291845291,-500.0,0.00011188,2]
[346794068,1735291845300,-689.56,0.00011188,2]
[346794069,1735291845309,-500.0,0.00011188,2]
[346794070,1735291845319,-1051.46,0.00011188,2]
[346794071,1735291845328,-648.6,0.00011188,2]
[346794072,1735291845337,-659.38,0.00011188,2]
[346794073,1735291845346,-554.78863047,0.00011188,2]
[346794074,1735291845355,-500.0,0.00011188,2]
[346794075,1735291845365,-500.0,0.00011188,2]
[346794076,1735291845374,-776.84,0.00011188,2]
[346794077,1735291845383,-514.74444954,0.00011188,2]
[346794078,1735291845393,-500.0,0.00011188,2]
[346794079,1735291845402,-500.0,0.00011188,2]
[346794080,1735291845412,-1075.55,0.00011188,2]
[346794081,1735291845421,-730.63,0.00011188,2]